[Event "Grand Prix Romania 1st Stage 2024"]
[Site "Bucuresti"]
[Date "2024.03.23"]
[Round "2.10"]
[White "Cebotari, Stanislav"]
[Black "Brunello, Sabino"]
[Result "0-1"]
[ECO "A07"]
[WhiteElo "2075"]
[BlackElo "2515"]
[Annotator "TA"]
[PlyCount "96"]
[EventDate "2024.03.20"]
[EventType "swiss"]
[EventCountry "ROU"]
[SourceTitle "playchess.com"]
[Source "ChessBase"]
[SourceQuality "1"]
[TimeControl "900+5"]

{[%evp 9,96,-18,35,0,1,0,0,-8,-2,-20,47,-35,0,-82,-81,-103,-100,-105,-98,-100,-65,-67,-50,-76,-32,-35,-43,-46,-35,-78,-20,-91,-74,-172,-178,-171,-99,-151,-156,-137,-162,-309,-314,-285,-297,-389,-328,-337,-364,-303,-246,-265,-172,-181,-174,-182,-135,-156,-131,-145,-144,-460,-432,-435,-431,-674,-656,-729,-765,-1602,-731,-2270,-2189,-2215,-3464,-2985,-2947,-2641,-2006,-2147,-2018,-29981,-29982,-29984,-29983,-29983,-29984,-29983,-29984]} 1. Nf3 {[%emt 0:00:01]} Nf6 {[%emt 0:00:03]} 2. g3 {[%emt 0:00:01]} d5 {[%emt 0:00:11]} 3. Bg2 {[%emt 0:00:02]} g6 {[%emt 0:00:11]} 4. O-O {[%emt 0:00:03]} Bg7 {[%emt 0:00:01]} 5. d3 {[%emt 0:00:01]} a5 {[%emt 0:00:03]} (5... O-O $11) 6. Nbd2 {[%emt 0:15:27]} a4 7. c3 {[%emt 0:00:00]} c5 {[%emt 0:00:05]} 8. e4 {[%emt 0:00:00] The position is equal.} O-O {[%emt 0:00:03]} 9. Re1 {[%emt 0:00:00]} d4 {[%emt 0:00:10]} (9... Nc6 $11) 10. c4 {[%emt 0:00:00]} (10. cxd4 $14 cxd4 11. e5) 10... Nc6 {[%emt 0:00:04]} 11. h3 {[%emt 0:00:00]} (11. e5 $11 {keeps the balance.} Ne8 12. b3) 11... e5 $17 {[%emt 0:00:03]} 12. Nf1 {[%emt 0:00:00]} h6 {[%emt 0:00:10]} 13. N3h2 {[%emt 0:00:00]} Be6 {[%emt 0:00:20]} 14. f4 {[%emt 0:00:00]} Qd7 {[%emt 0:00:08]} 15. g4 $1 {[%emt 0:00:00]} exf4 {[%emt 0:00:05] ...g5 would now be deadly. Black is much more active. The white rooks are passive.} 16. Bxf4 {[%emt 0:00:00]} a3 {[%emt 0:00:16]} (16... b5 $5 17. b3 bxc4 18. bxc4 Kh7 $14) 17. b3 {[%emt 0:00:00]} g5 {[%emt 0:00:25]} 18. Bg3 {[%emt 0:00:00]} Nh7 $36 {[%emt 0:00:33][%mdl 2048] Black has good play.} (18... h5 $5 19. e5 Nh7 $17) 19. Nf3 {[%emt 0:00:00]} Rfe8 {[%emt 0:00:02]} (19... h5 $17 20. gxh5 Bxh3) 20. Bh2 {[%emt 0:00:00]} (20. Re2 $11 {remains equal.}) 20... h5 $1 {[%emt 0:00:09]} 21. Qd2 {[%emt 0:00:00]} (21. gxh5 $17 {was the only defense.} Bxh3 22. Qd2) 21... hxg4 $19 {[%emt 0:00:11]} 22. hxg4 {[%emt 0:00:00]} f6 {[%emt 0:00:09]} (22... Bxg4 $19 23. Ng3 Re6) 23. e5 {[%emt 0:00:00]} (23. Ng3 $142) 23... Bxg4 $17 {[%emt 0:00:07][%cal Rf6e5]} 24. exf6 {[%emt 0:00:00]} Bxf6 {[%emt 0:00:03]} 25. Ng3 {[%emt 0:00:00] [#]} (25. Rxe8+ {was called for.} Rxe8 26. Re1) 25... Re3 $1 $19 {[%emt 0:00:49][%mdl 512] White is weak on the dark squares} 26. Rf1 {[%emt 0:00:00] [#]} Rf8 $1 {[%emt 0:03:35] White must now prevent ...Bd8.} 27. Rf2 {[%emt 0:00:00]} Bh3 {[%emt 0:01:33] Hoping for ...Bxg2.} 28. Raf1 {[%emt 0:00:00]} Bxg2 {[%emt 0:00:02]} 29. Rxg2 {[%emt 0:00:00]} Bg7 {[%emt 0:01:48]} 30. Ne1 {[%emt 0:00:00]} Rxf1+ {[%emt 0:00:16]} 31. Nxf1 {[%emt 0:00:00]} Re7 {[%emt 0:02:01]} 32. Ng3 {[%emt 0:00:00]} Nf6 {[%emt 0:00:30] Prevents Ne4.} ({Better is} 32... Qe6 $19 33. Ne4 Nf6 34. Rxg5 Nxe4 35. dxe4 Qxe4) 33. Nf3 $17 {[%emt 0:00:03]} g4 {[%emt 0:00:11]} 34. Nh4 {[%emt 0:00:05]} Ne5 {[%emt 0:00:07] ...Nf3+ is the strong threat.} 35. Ngf5 $2 {[%emt 0:00:30][%mdl 8192] Now White is beyond hope.} (35. Rf2 $17 {is tougher.}) 35... Nf3+ $19 {[%emt 0:00:05]} 36. Nxf3 {[%emt 0:00:02]} Qxf5 {[%emt 0:00:02]} 37. Nh4 {[%emt 0:00:48]} (37. Ne5 $142 Rxe5 38. Rf2) 37... Qh7 {[%emt 0:00:12][%cal Og7h6] Threatens to win with ...Bh6!} 38. Qf2 {[%emt 0:00:24]} Qxd3 {[%emt 0:00:13]} 39. Bd6 {[%emt 0:00:08]} Ne4 {[%emt 0:00:23]} (39... Qb1+ $142 40. Kh2 Re1) 40. Bxe7 {[%emt 0:00:17]} Nxf2 {[%emt 0:00:03]} 41. Rxf2 {[%emt 0:00:01]} g3 {[%emt 0:00:16]} 42. Rf3 {[%emt 0:00:01] Against Qe3+} Qd1+ {[%emt 0:00:18]} 43. Kg2 {[%emt 0:00:03]} Qe2+ {[%emt 0:00:01]} 44. Kxg3 {[%emt 0:00:02]} Qxe7 {[%emt 0:00:01]} 45. Nf5 {[%emt 0:00:10]} Qe5+ {[%emt 0:00:07] Black mates.} 46. Kg2 {[%emt 0:00:07]} Qe2+ {[%emt 0:00:02]} 47. Rf2 {[%emt 0:00:25]} Qe4+ {[%emt 0:00:02]} 48. Kf1 {[%emt 0:00:09]} d3 {[%emt 0:00:19] Weighted Error Value: White=0.83/Black=0.35.  Loses game:     	White=1     	---        Mistake:       	White=7     	Black=4      Inaccurate:     	White=3     	Black=4      OK:         	White=10    	Black=9      Best:        	White=1     	Black=5      Strong:       	White=1     	Black=2      Brilliant:      	---       	Black=1} 0-1

[Event "Grand Prix Romania 1st Stage 2024"]
[Site "Bucuresti"]
[Date "2024.03.23"]
[Round "2.11"]
[White "Sargsyan, Shant"]
[Black "Sofronie, Vladimir"]
[Result "1-0"]
[ECO "B31"]
[WhiteElo "2637"]
[BlackElo "1990"]
[Annotator "TA"]
[PlyCount "87"]
[EventDate "2024.03.20"]
[EventType "swiss"]
[EventCountry "ROU"]
[SourceTitle "playchess.com"]
[Source "ChessBase"]
[SourceQuality "1"]
[TimeControl "900+5"]

{[%evp 13,87,19,45,23,38,40,36,23,52,47,39,29,35,31,33,6,71,86,83,82,80,79,97,83,101,93,89,91,87,87,143,112,110,104,105,87,99,72,78,74,155,145,160,174,250,241,383,257,271,271,269,137,150,152,146,134,236,229,254,241,251,251,680,771,749,748,683,596,787,772,893,873,1228,1150,29991,29992]} 1. e4 {[%emt 0:00:03]} c5 {[%emt 0:00:01]} 2. Nf3 {[%emt 0:00:03]} Nc6 {[%emt 0:00:02]} 3. Bb5 {[%emt 0:00:01]} g6 {[%emt 0:00:01]} 4. O-O {[%emt 0:00:08]} Bg7 {[%emt 0:00:03]} 5. Re1 {[%emt 0:00:02]} e5 {[%emt 0:00:02]} 6. Bxc6 {[%emt 0:00:06]} dxc6 {[%emt 0:00:02]} 7. d3 {[%emt 0:00:05]} Ne7 {[%emt 0:00:20]} 8. a4 {[%emt 0:00:32]} O-O {[%emt 0:00:04]} 9. a5 {[%emt 0:00:03]} Rb8 {[%emt 0:01:20]} 10. Nbd2 {[%emt 0:00:24] White is slightly better.} h6 {[%emt 0:00:21]} 11. b3 {[%emt 0:00:49]} Be6 {[%emt 0:00:24]} 12. Bb2 {[%emt 0:00:02]} f6 {[%emt 0:00:17]} 13. Nc4 {[%emt 0:00:25]} Qc7 {[%emt 0:01:07]} 14. Nfd2 {[%emt 0:00:30][%cal Bf3d2,Bd2f1,Bf1g3,Bg3f5][%mdl 32]} g5 {[%emt 0:01:26]} (14... b5 $11 {remains equal.}) 15. Ne3 $16 {[%emt 0:00:13]} Ng6 {[%emt 0:00:12]} 16. Ndf1 {[%emt 0:00:12]} Nf4 {[%emt 0:01:33]} 17. Ng3 {[%emt 0:00:08]} Bf7 {[%emt 0:00:53]} 18. Ngf5 {[%emt 0:00:14]} h5 {[%emt 0:00:13]} 19. g3 {[%emt 0:00:36]} Ne6 {[%emt 0:00:06]} 20. h4 {[%emt 0:00:24]} Bg6 {[%emt 0:00:52]} 21. Kg2 {[%emt 0:00:21]} Rbd8 {[%emt 0:00:48]} ({Better is} 21... g4) 22. Rh1 {[%emt 0:00:35]} g4 {[%emt 0:00:07]} 23. f3 {[%emt 0:00:18]} gxf3+ {[%emt 0:00:11]} 24. Qxf3 {[%emt 0:00:02]} Kh7 {[%emt 0:00:36]} 25. Bc3 {[%emt 0:01:03]} Rg8 {[%emt 0:00:55]} 26. Raf1 {[%emt 0:00:07]} Bh8 {[%emt 0:00:03]} (26... Nd4 $142 27. Qf2 b5) 27. Kh2 {[%emt 0:00:17]} Qf7 {[%emt 0:00:25]} 28. Rhg1 {[%emt 0:00:11]} Rdf8 {[%emt 0:01:58]} (28... Nd4 $142 29. Qf2 b5) 29. Nc4 $18 {[%emt 0:00:21] A dynamic duo of knights.} Bg7 {[%emt 0:00:31]} (29... Qc7 {might work better.} 30. b4 cxb4) 30. Bd2 {[%emt 0:01:19]} Nd4 {[%emt 0:00:22]} 31. Nxd4 {[%emt 0:00:02]} cxd4 {[%emt 0:00:03]} 32. Nd6 {[%emt 0:00:02]} ({White should try} 32. g4 $18 Qe6 33. gxh5) 32... Qd7 {[%emt 0:00:05]} 33. Nf5 {[%emt 0:00:01]} Qf7 {[%emt 0:00:36]} 34. Bb4 $36 {[%emt 0:00:24][%mdl 2048] [#] aiming for g4. White is in control. White has more active pieces.} Rd8 {[%emt 0:00:08]} (34... c5 $16 {was called for.}) 35. Ne7 {[%emt 0:00:30][%cal Og3g4] And now g4! would win.} Rge8 {[%emt 0:00:29]} 36. Nxg6 {[%emt 0:00:03]} Qxg6 {[%emt 0:00:02]} 37. g4 {[%emt 0:00:01]} hxg4 {[%emt 0:00:41]} (37... Bh6 38. g5 (38. gxh5 Bf4+ 39. Kh3 Qf7 $18) 38... fxg5) 38. Rxg4 {[%emt 0:00:03]} Qh6 {[%emt 0:00:01]} 39. Qf5+ {[%emt 0:00:20]} Kh8 {[%emt 0:00:03]} 40. Rfg1 {[%emt 0:00:42]} Rg8 {[%emt 0:00:19]} 41. Kh3 {[%emt 0:00:03]} Qh7 {[%emt 0:00:19]} 42. Rg6 {[%emt 0:00:02] [#] Strongly threatening Be7.} b6 {[%emt 0:00:15]} 43. Be7 {[%emt 0:00:36][%csl LRd8,LRf6]} Rde8 {[%emt 0:00:11]} 44. Bxf6 {[%emt 0:00:03] Weighted Error Value: White=0.17 (very precise) /Black=0.49.  Mistake:       	White=1     	Black=7      Inaccurate:     	White=2     	Black=1      OK:         	White=16    	Black=11     Best:        	---       	Black=2} 1-0

[Event "Grand Prix Romania 1st Stage 2024"]
[Site "Bucuresti"]
[Date "2024.03.23"]
[Round "2.12"]
[White "Ciolacu, Alessia-Mihaela"]
[Black "Chigaev, Maksim"]
[Result "0-1"]
[ECO "E73"]
[WhiteElo "2175"]
[BlackElo "2617"]
[Annotator "TA"]
[PlyCount "98"]
[EventDate "2024.03.20"]
[EventType "swiss"]
[EventCountry "ROU"]
[SourceTitle "playchess.com"]
[Source "ChessBase"]
[SourceQuality "1"]
[TimeControl "900+5"]

{[%evp 10,98,40,50,46,0,13,-61,-85,-77,-11,-10,-14,-184,-194,-188,-182,-176,-157,-182,-160,-169,-166,-182,-182,-187,-179,-180,-107,-146,-120,-160,-116,-287,-264,-263,-208,-259,-146,-161,-131,-245,-162,-233,-238,-245,-245,-245,-245,-245,-245,-423,-428,-411,-299,-351,-225,-225,-225,-225,-218,-218,-210,-483,-460,-566,-518,-496,-471,-967,-815,-774,-617,-1118,-795,-1666,-1655,-1727,-1643,-5795,-6542,-6199,-2512,-29979,-29980,-29980,-29981,-29983,-29984,-29984,-29985]} 1. d4 {[%emt 0:00:03]} Nf6 {[%emt 0:00:02]} 2. c4 {[%emt 0:00:03]} g6 {[%emt 0:00:02]} 3. Nc3 {[%emt 0:00:04]} Bg7 {[%emt 0:00:02]} 4. e4 {[%emt 0:00:10]} d6 {[%emt 0:00:02]} 5. Be2 {[%emt 0:00:01]} O-O {[%emt 0:00:07]} 6. Be3 {[%emt 0:00:05]} a5 {[%emt 0:00:48]} 7. g4 {[%emt 0:01:42]} (7. Nf3 $14 {should be considered.}) 7... c5 {[%emt 0:00:42][%cal Of6g4] ...Nxg4! would now be deadly.} 8. g5 {[%emt 0:00:57] [#]} (8. d5 $11) 8... Ng4 $1 $15 {[%emt 0:00:09] Black is slightly better.} 9. Bxg4 {[%emt 0:03:13]} Bxg4 {[%emt 0:00:02]} ({Black should play} 9... cxd4 $17 10. Bxd4 (10. Bxc8 $2 dxe3 11. Rc1 exf2+ 12. Kxf2 Qxc8 $19) 10... Bxd4 11. Qxd4 Bxg4) 10. Qxg4 $11 {[%emt 0:00:14] And now Nge2 would win.} cxd4 {[%emt 0:00:03]} (10... Bxd4 $2 11. Nf3 $18) 11. Bd2 {[%emt 0:01:45]} (11. Bxd4 $11 {and White has nothing to worry.} Bxd4 12. Nge2) 11... dxc3 $19 {[%emt 0:00:07]} 12. Bxc3 {[%emt 0:00:02]} Bxc3+ {[%emt 0:00:14]} 13. bxc3 {[%emt 0:00:01]} Qc8 {[%emt 0:00:04]} 14. Qe2 {[%emt 0:00:18]} Nc6 {[%emt 0:00:22]} 15. Nf3 {[%emt 0:01:00]} Qh3 {[%emt 0:00:02] White must now prevent ...Ne5.} 16. Rb1 {[%emt 0:00:33]} Ne5 {[%emt 0:00:38]} 17. Nxe5 {[%emt 0:00:57]} Qxc3+ {[%emt 0:00:03]} 18. Kf1 {[%emt 0:00:33] [#]} Qxe5 {[%emt 0:00:04]} (18... Qh3+ $1 $19 19. Kg1 dxe5) 19. h4 {[%emt 0:00:08]} Rac8 {[%emt 0:02:19]} 20. Rxb7 {[%emt 0:00:31]} Qe6 {[%emt 0:00:56][%cal Of8e8]} 21. h5 $2 {[%emt 0:01:11]} (21. Kg2 $17) 21... Rxc4 {[%emt 0:00:19]} 22. Rh4 {[%emt 0:00:03]} d5 $40 {[%emt 0:00:32][%mdl 128] Black wants a kill.} 23. Rb3 {[%emt 0:01:12]} Rxe4 {[%emt 0:00:46]} (23... Qe5 $19 24. Rb5 Qxg5 25. Qxc4 Qxh4 26. Qxd5 Qh1+ 27. Ke2 Rc8) 24. Rxe4 $17 {[%emt 0:01:18]} dxe4 $19 {[%emt 0:00:03][%mdl 4096] Endgame. KQR-KQR} 25. Kg2 {[%emt 0:00:26]} (25. h6 $17) 25... Qf5 {[%emt 0:00:45]} 26. Rb5 {[%emt 0:00:07]} (26. Qb5 {was called for.}) 26... e5 {[%emt 0:00:02]} 27. hxg6 {[%emt 0:00:25]} Qxg5+ {[%emt 0:00:04]} (27... hxg6 28. Qe3) 28. Kf1 {[%emt 0:00:12]} hxg6 {[%emt 0:00:04] Hoping for ...Rc8.} (28... fxg6 29. Qc4+ Rf7 30. Rb7 $11) 29. Qxe4 {[%emt 0:00:06]} Rd8 {[%emt 0:00:43]} 30. Rxe5 $2 {[%emt 0:00:06]} (30. Rd5 {was necessary.}) 30... Rd1+ {[%emt 0:00:05]} 31. Ke2 {[%emt 0:00:02]} Qd2+ {[%emt 0:00:07]} 32. Kf3 {[%emt 0:00:02] Strongly threatening Re8+.} Qd3+ {[%emt 0:00:05]} (32... Qxa2 $2 {loses.} 33. Re8+ Kg7 34. Qe5+ f6 35. Qc7+ (35. Re7+ Qf7 $18) 35... Qf7 36. Re7 $18) 33. Qxd3 {[%emt 0:00:13]} Rxd3+ {[%emt 0:00:03] KR-KR} 34. Kf4 {[%emt 0:00:05]} Ra3 {[%emt 0:00:19]} 35. Re2 {[%emt 0:00:02]} Kg7 {[%emt 0:00:02]} 36. Ke5 {[%emt 0:00:06]} (36. Rc2 {was worth a try.}) 36... f6+ {[%emt 0:00:22]} 37. Ke6 {[%emt 0:00:04]} Rf3 {[%emt 0:00:02]} 38. Rb2 {[%emt 0:00:06]} a4 {[%emt 0:00:16]} 39. Rb7+ {[%emt 0:00:07]} (39. Kd5 $142 g5 40. Kc5) 39... Kh6 {[%emt 0:00:02]} 40. Rb4 {[%emt 0:00:02]} a3 {[%emt 0:00:08]} 41. Ra4 {[%emt 0:00:04]} Kh5 {[%emt 0:00:37][%cal Of6f5] Threatens to win with ...f5!} 42. Kf7 {[%emt 0:00:05]} g5 {[%emt 0:00:02][%cal Og5g4]} 43. Kg7 {[%emt 0:00:09]} g4 {[%emt 0:00:15]} 44. Ra5+ {[%emt 0:00:04]} Kh4 {[%emt 0:00:10]} 45. Kg6 {[%emt 0:00:02]} Rxf2 {[%emt 0:00:05] ( -> ...g3)} 46. Rxa3 {[%emt 0:00:06]} g3 {[%emt 0:00:03] Black mates.} 47. Ra4+ {[%emt 0:00:09]} Kh3 {[%emt 0:00:03]} 48. Kh5 {[%emt 0:00:02]} g2 {[%emt 0:00:47]} 49. Rh4+ {[%emt 0:00:08]} Kg3 {[%emt 0:00:03] Weighted Error Value: White=0.94/Black=0.28 (precise) .  Loses game:     	White=2     	---        Mistake:       	White=7     	Black=3      Inaccurate:     	White=2     	Black=2      OK:         	White=5     	Black=12     Best:        	White=4     	Black=6      Brilliant:      	---       	Black=1} 0-1

[Event "Grand Prix Romania 1st Stage 2024"]
[Site "Bucuresti"]
[Date "2024.03.23"]
[Round "2.13"]
[White "Fridman, Daniel"]
[Black "Kondort, Mihai"]
[Result "1-0"]
[ECO "D34"]
[WhiteElo "2590"]
[BlackElo "2023"]
[Annotator "TA"]
[PlyCount "83"]
[EventDate "2024.03.20"]
[EventType "swiss"]
[EventCountry "ROU"]
[SourceTitle "playchess.com"]
[Source "ChessBase"]
[SourceQuality "1"]
[TimeControl "900+5"]

{[%evp 22,83,63,56,51,59,60,54,63,55,58,50,60,54,63,41,61,53,60,39,83,63,58,55,43,20,50,53,149,137,141,131,145,158,157,141,135,154,156,134,447,33,43,36,36,38,54,41,76,42,52,9,11,0,0,-8,-14,-10,216,206,215,219,869,856]} 1. Nf3 {[%emt 0:00:03]} Nf6 {[%emt 0:00:02]} 2. c4 {[%emt 0:00:02]} e6 {[%emt 0:00:02]} 3. g3 {[%emt 0:00:02]} c5 {[%emt 0:00:02]} 4. Bg2 {[%emt 0:00:02]} Nc6 {[%emt 0:00:01]} 5. O-O {[%emt 0:00:03]} Be7 {[%emt 0:00:08]} 6. d4 {[%emt 0:00:03]} d5 {[%emt 0:00:03]} 7. cxd5 {[%emt 0:00:02]} exd5 {[%emt 0:00:03]} 8. Nc3 {[%emt 0:00:03]} h6 {[%emt 0:00:06]} 9. b3 {[%emt 0:00:07]} O-O {[%emt 0:00:18]} 10. Bb2 {[%emt 0:00:02]} Be6 {[%emt 0:00:33]} 11. Rc1 {[%emt 0:00:03]} cxd4 {[%emt 0:00:32]} 12. Nxd4 {[%emt 0:00:03]} Qd7 {[%emt 0:00:03]} 13. Nxe6 {[%emt 0:00:03]} fxe6 {[%emt 0:00:14]} 14. Bh3 {[%emt 0:00:02][%cal Oe2e4]} Bb4 {[%emt 0:00:52] White is slightly better.} 15. e3 {[%emt 0:00:30]} Bxc3 {[%emt 0:00:26]} 16. Bxc3 {[%emt 0:00:05]} Qe7 {[%emt 0:00:18]} 17. Bg2 {[%emt 0:00:09]} Rad8 {[%emt 0:00:11]} 18. Qc2 {[%emt 0:00:16]} Rc8 {[%emt 0:01:00]} 19. Qe2 {[%emt 0:00:33]} e5 {[%emt 0:00:32][%cal Be6e5,Be5e4][%mdl 32]} 20. Rfd1 {[%emt 0:00:05]} Rfd8 {[%emt 0:00:03]} 21. Bb2 {[%emt 0:00:30]} e4 {[%emt 0:00:45]} 22. Bh3 {[%emt 0:00:07][%cal Ob2f6,Bg2h3,Bh3e6,Be6d5,Bd5e4][%mdl 32] Bxf6! is the strong threat.} Rc7 {[%emt 0:00:27]} 23. Qc2 {[%emt 0:00:08]} Ne8 {[%emt 0:00:53][%cal Oc6d4]} 24. Qc5 {[%emt 0:01:14]} Qxc5 {[%emt 0:01:49]} (24... Qf7 $14) 25. Rxc5 $16 {[%emt 0:00:03][%cal Bc1c5,Bc5b5,Bb5f5][%mdl 32]} Nb4 {[%emt 0:00:14]} 26. Be6+ {[%emt 0:01:20]} Kh8 {[%emt 0:00:02]} 27. Rb5 {[%emt 0:00:54] White is more active.} Nd3 {[%emt 0:01:20]} 28. Bd4 {[%emt 0:00:03]} (28. Rxd5 $2 Rxd5 29. Bxd5 Nxb2 $19) 28... Rd6 {[%emt 0:02:39]} 29. Bxd5 {[%emt 0:02:50]} a6 {[%emt 0:00:03] [#]} 30. Bxe4 $1 {[%emt 0:00:27] Strongly threatening Rf5. A strong pair of Bishops.} (30. Rxb7 Rxd5 31. Rb8 Re7 $17) 30... Nxf2 $2 {[%emt 0:00:22][%mdl 8192]} (30... axb5 $16 31. Bxd3 (31. Rxd3 b4 $16) 31... Rd5) 31. Rf5 $2 {[%emt 0:00:22]} ({Inferior is} 31. Kxf2 axb5 32. Bd3 Rd5 $11) (31. Re5 $18 {[%cal Re5e8]} Nf6 32. Kxf2 Ng4+ 33. Ke2 Nxe5 34. Bxe5 Rxd1 35. Bxc7 (35. Kxd1 Re7 $11)) 31... Nxe4 $14 {[%emt 0:01:07]} 32. Rf8+ {[%emt 0:00:01]} Kh7 {[%emt 0:00:01]} 33. Rxe8 {[%emt 0:00:02]} Nf6 {[%emt 0:00:44]} 34. Rb8 {[%emt 0:00:19]} Rdd7 {[%emt 0:00:23]} 35. Rf1 {[%emt 0:00:17]} Ne4 {[%emt 0:00:07][%cal Bf6e4,Be4g5,Bg5f7][%mdl 32]} 36. Rbf8 {[%emt 0:01:30]} Ng5 {[%emt 0:00:19]} 37. Re8 {[%emt 0:01:00]} Rc2 {[%emt 0:00:03]} 38. Kh1 {[%emt 0:00:02]} Rxa2 {[%emt 0:00:30] Hoping for ...Rc7.} 39. h4 {[%emt 0:00:19]} Rf7 $2 {[%emt 0:00:11] [#]} (39... Nf7 $11 {and Black is okay.}) 40. Rxf7 $1 $18 {[%emt 0:00:05]} Nxf7 {[%emt 0:00:02]} 41. Re7 {[%emt 0:00:02][%csl LRb7,LRf7]} Rf2 {[%emt 0:00:09]} (41... Kg8 42. Rxb7 a5) 42. Kg1 {[%emt 0:00:05] Weighted Error Value: White=0.27 (precise) /Black=0.45.  Loses game:     	---       	Black=2      Missed win:     	White=1     	---        Mistake:       	---       	Black=2      Inaccurate:     	White=2     	Black=3      OK:         	White=7     	Black=5      Best:        	White=2     	Black=4      Strong:       	White=2     	---} 1-0

[Event "Grand Prix Romania 1st Stage 2024"]
[Site "Bucuresti"]
[Date "2024.03.23"]
[Round "2.14"]
[White "Iustin, Silviu"]
[Black "Bernadskiy, Vitaliy"]
[Result "0-1"]
[ECO "B23"]
[WhiteElo "2028"]
[BlackElo "2573"]
[Annotator "RC"]
[PlyCount "50"]
[EventDate "2024.03.20"]
[EventType "swiss"]
[EventCountry "ROU"]
[SourceTitle "playchess.com"]
[Source "ChessBase"]
[SourceQuality "1"]
[TimeControl "900+5"]

1. e4 {[%emt 0:00:02]} c5 {[%emt 0:00:02]} 2. Nc3 {[%emt 0:00:01]} e6 {[%emt 0:00:01]} 3. f4 {[%emt 0:00:01]} Nf6 {[%emt 0:00:07]} 4. e5 {[%emt 0:00:09]} Nd5 {[%emt 0:00:01]} 5. Nxd5 {[%emt 0:00:01]} exd5 {[%emt 0:00:02]} 6. d4 {[%emt 0:00:04]} d6 {[%emt 0:00:18]} 7. Nf3 {[%emt 0:00:07]} Nc6 {[%emt 0:00:01]} 8. c3 {[%emt 0:00:19]} cxd4 {[%emt 0:00:09]} 9. cxd4 {[%emt 0:00:14]} dxe5 {[%emt 0:00:06]} 10. fxe5 {[%emt 0:00:12]} Bg4 {[%emt 0:00:02]} 11. Be3 {[%emt 0:00:20]} Qb6 {[%emt 0:00:10]} 12. Be2 {[%emt 0:00:13]} Bb4+ {[%emt 0:00:04]} 13. Kf2 {[%emt 0:00:05]} O-O {[%emt 0:00:02]} 14. h3 {[%emt 0:00:06]} Bf5 {[%emt 0:00:14]} 15. Bd3 {[%emt 0:00:21]} Be4 {[%emt 0:00:29]} 16. Qc2 {[%emt 0:00:18]} Bxf3 {[%emt 0:01:01]} 17. gxf3 {[%emt 0:01:18]} Nxd4 {[%emt 0:00:02]} 18. Bxh7+ {[%emt 0:02:50]} Kh8 {[%emt 0:13:44]} 19. Qd3 Bc5 {[%emt 0:00:00]} 20. b4 {[%emt 0:00:48]} Qxb4 {[%emt 0:00:10]} 21. Rab1 {[%emt 0:09:21]} Qa4 {[%emt 0:00:00]} 22. Rb2 {[%emt 0:00:00]} Ne6 {[%emt 0:00:00]} 23. Bf5 {[%emt 0:00:00]} Qh4+ {[%emt 0:00:00]} 24. Ke2 {[%emt 0:00:00]} Bxe3 {[%emt 0:00:00]} 25. Qxe3 {[%emt 0:00:00]} Nd4+ {[%emt 0:00:00]} 0-1